Cogmind - Beta 13 @@@ ROGUE MODE // 2024.04.01 @ 22:46:08 Player: Reflectatory Result: Destroyed by S-27 Virus with Autogun Performance ------------- Evolutions (5) 2500 Regions Visited (8) 1600 Robots Destroyed (10) 50 Value Destroyed (319) 319 Prototype IDs (9) 180 Alien Tech Used (0) 0 Bonus (500) 500 TOTAL SCORE: 5149 Bonus ------- Entered DSFs 500 Cogmind --------- Core Integrity 0/1000 Matter 193/300 Energy 99/100 System Corruption 12% Temperature Cool (0) Movement Core (50) Location -5/Factory Parts ------- > --- POWER (2) -------- (None) > --- PROPULSION (6) --- (None) > --- UTILITY (6) ------ Signal Interpreter > --- WEAPON (3) ------- (None) > --- INVENTORY (5) ---- VTOL Module Peak State ------------ > --- POWER ------------ (None) > --- PROPULSION ------- Flying VTOL-Compact Exoskeleton Gravmag System > --- UTILITY ---------- Armored Scrap Engine Signal Interpreter Targeting Computer Medium Armor Plating Advanced Hacking Suite > --- WEAPON ----------- Heavy Particle Gun Heavy Assault Rifle Advanced Assault Cannon > --- INVENTORY -------- Power Amplifier Improved Cooling System ECM Suite Reaction Control System [Rating: 47] Favorites ----------- Power Light Ion Engine Engine Light Ion Engine Power Core Micro Fission Core Propulsion Gravmag System Treads Light Treads Leg Aluminum Leg Wheel Wheel Hover Unit Gravmag System Flight Unit Flight Unit Utility Signal Interpreter Device Armored Scrap Engine Storage Huge Storage Unit Processor Signal Interpreter Hackware Advanced Hacking Suite Protection Medium Armor Plating Weapon Light Assault Rifle Energy Gun Heavy Particle Gun Energy Cannon Light EM Pulse Cannon Ballistic Gun Light Assault Rifle Ballistic Cannon Advanced Assault Cannon Launcher Guided EMP Blaster Special Weapon Remote Datajack Build | -11 -10 -10 -10 -9 -7 -6 -6 -5 ------- Run | Yrd Mat Min Sub Rec Fac Fac DSF Fac Slots Evolved 10 | . . . . . 6 2 . 2 Power 1 | . . . . . 1 . . . Propulsion 4 | . . . . . 2 . . 2 Utility 4 | . . . . . 2 2 . . Weapon 1 | . . . . . 1 . . . Parts Attached 73 | 6 6 16 2 2 12 5 5 19 Power 7 | 1 . 1 1 1 . . 1 2 Engine 5 | 1 . 1 1 1 . . 1 . Core 2 | . . . . . . . . 2 Reactor . | . . . . . . . . . Propulsion 27 | 2 2 8 1 . 4 . 1 9 Treads 1 | . 1 . . . . . . . Leg 8 | . . 2 . . . . . 6 Wheel 5 | 2 1 2 . . . . . . Hover 6 | . . . . . 3 . . 3 Flight 7 | . . 4 1 . 1 . 1 . Utility 23 | 1 2 4 . . 1 5 3 7 Device 13 | 1 . 2 . . 1 3 1 5 Storage 2 | . 1 1 . . . . . . Processor 4 | . 1 1 . . . . . 2 Hackware 2 | . . . . . . . 2 . Protection 2 | . . . . . . 2 . . Artifact . | . . . . . . . . . Weapon 16 | 2 2 3 . 1 7 . . 1 Energy Gun 1 | . . . . . 1 . . . Energy Cannon 2 | . 2 . . . . . . . Ballistic Gun 7 | 2 . 2 . 1 2 . . . Ballistic Cannon 1 | . . . . . 1 . . . Launcher 2 | . . 1 . . . . . 1 Special Weapon 3 | . . . . . 3 . . . Impact Weapon . | . . . . . . . . . Slashing Weapon . | . . . . . . . . . Piercing Weapon . | . . . . . . . . . Special Melee Weapon . | . . . . . . . . . Unidentified Prototypes 2 | . . . . . 1 . . 1 Parts Lost 32 | . . . 2 1 2 . 13 14 Power 6 | . . . 1 1 1 . 1 2 Propulsion 9 | . . . 1 . 1 . 4 3 Utility 13 | . . . . . . . 5 8 Weapon 4 | . . . . . . . 3 1 Highest Loss Streak 12 | . . . 2 1 2 . 12 12 To Critical Strikes 1 | . . . . . . . 1 . Average Slot Usage (%) 76 | . 99 99 78 98 63 66 52 27 Engine 7 | . 14 14 3 12 4 . 1 . Leg 4 | . . 12 . . . . . 1 Wheel 4 | . 28 10 . . . . . . Hover 4 | . . . . . 16 13 6 1 Flight 5 | . . 5 17 28 . . . . Device 4 | . . 1 . . 7 13 7 9 Storage 4 | . 13 12 . . . . . . Processor 15 | . 13 14 28 28 15 13 13 10 Energy Cannon 5 | . 5 15 . . . . . . Ballistic Gun 12 | . 22 12 28 28 11 6 4 . Ballistic Cannon 1 | . . . . . 5 6 3 . Naked Turns . | . . . . . . . . . Heaviest Build 91 | 6 51 91 7 7 14 21 30 20 Greatest Support 48 | 20 20 20 8 8 27 21 21 48 Greatest Overweight (x) 22 | . 2 22 . . 1 . 3 2 Average Overweight (x) . | . 1 1 . . . . . . Largest Inventory Capacity 25 | 5 20 25 5 5 5 5 5 5 Average Capacity 10 | 5 18 21 5 5 5 5 5 5 Most Carried 12 | 5 11 12 4 5 5 5 5 5 Average Carried 5 | 2 7 8 1 3 4 3 4 1 Final Capacity 20 | 5 20 5 5 5 5 5 5 5 Final Carried 9 | 3 9 1 4 4 5 5 3 1 Scrap Engine Consumption 28 | . . . . . 11 3 14 . Constructs Created 4 | . . . . . 1 . 3 . Class Distribution -------------------- 84% | Mutant 8% | Gunner 7% | Scavenger-Mutant Dominant Class ---------------- Mutant | -10/Materials Mutant | -10/Mines Mutant | -10/Subcaves Mutant | -9/Recycling Mutant | -7/Factory Mutant | -6/Factory Mutant | -6/DSF Mutant | -5/Factory Resources | -11 -10 -10 -10 -9 -7 -6 -6 -5 ----------- Run | Yrd Mat Min Sub Rec Fac Fac DSF Fac Matter Collected 908 | 268 . 235 42 21 227 . 88 27 Remotely . | . . . . . . . . . Salvage Created 294 | 47 . 76 10 52 53 . 56 . Parts 20 | 1 . 6 2 4 3 . 4 . Haulers Intercepted . | . . . . . . . . . Recyclers Shooed . | . . . . . . . . . Parts Field Recycled . | . . . . . . . . . Retrieved Matter . | . . . . . . . . . Parts Self-Destructed 17 | . . . 17 . . . . . Prevented . | . . . . . . . . . Kills | -11 -10 -10 -10 -9 -7 -6 -6 -5 ------- Run | Yrd Mat Min Sub Rec Fac Fac DSF Fac Combat Hostiles Destroyed 10 | 1 . 3 1 1 2 . 2 . Guns 6 | 1 . 2 1 1 . . 1 . Cannons 4 | . . 1 . . 2 . 1 . Classes Destroyed 5 | 1 . 1 . 1 . . 2 . Swarmer 4 | . . 2 1 . 1 . . . Cutter 1 | . . . . . . . 1 . Grunt 3 | 1 . 1 . . 1 . . . Sentry 1 | . . . . 1 . . . . Specialist 1 | . . . . . . . 1 . Best Kill Streak 2 | 1 . 2 1 1 2 . 1 . Combat Bots Only 2 | 1 . 2 1 1 2 . 1 . Max Kills in Single Turn 1 | 1 . 1 1 1 1 . 1 . Gunslinging . | . . . . . . . . . Exploded . | . . . . . . . . . Melee . | . . . . . . . . . Uniques/NPCs Destroyed . | . . . . . . . . . Combat | -11 -10 -10 -10 -9 -7 -6 -6 -5 -------- Run | Yrd Mat Min Sub Rec Fac Fac DSF Fac Hostile Shots Fired 397 | 5 . 21 30 14 31 9 131 156 Missed 162 | 2 . 7 18 7 10 4 50 64 Damage Taken 4596 | 31 . 180 165 101 432 38 1918 1731 Core 1954 | 10 . 54 65 47 109 28 638 1003 Absorbed by Shields 98 | . . . . . . . . 98 Ignored by Resistances 129 | . . . . . . . . 129 Regen/Repaired (Parts) 92 | . . . . . 69 . 23 . Core Remaining (%) 57 | 96 . . . 29 84 . 21 . Volleys Fired 43 | 4 . 8 7 8 11 . 5 . Largest 3 | 2 . 2 2 2 3 . 2 . Hottest 112 | 40 . 112 40 40 91 . 79 . Shots Fired 94 | 8 . 16 14 16 30 . 10 . Gun 68 | 8 . 5 14 16 19 . 6 . Cannon 24 | . . 9 . . 11 . 4 . Launcher 2 | . . 2 . . . . . . Special . | . . . . . . . . . Kinetic 83 | 8 . 5 14 16 30 . 10 . Thermal . | . . . . . . . . . Explosive 2 | . . 2 . . . . . . Electromagnetic 9 | . . 9 . . . . . . Robot Hit Streak 10 | 3 . 9 7 10 10 . 2 . Robot Miss Streak 6 | 2 . 2 1 2 3 . 6 . Penetration Max . | . . . . . . . . . Secondary Targets . | . . . . . . . . . Shots Hit Robots 63 | 5 . 8 10 13 22 . 5 . Core Hits 24 | 3 . 4 5 3 5 . 4 . Critical Kills . | . . . . . . . . . Critical Parts Destroyed . | . . . . . . . . . Critical Strikes 1 | . . . . . . . 1 . Blast 1 | . . . . . . . 1 . Melee Attacks . | . . . . . . . . . Impact . | . . . . . . . . . Slashing . | . . . . . . . . . Piercing . | . . . . . . . . . Sneak Attacks . | . . . . . . . . . Combat Hostiles . | . . . . . . . . . Follow-up Attacks . | . . . . . . . . . Damage Inflicted 1059 | 34 . 214 76 107 493 . 135 . Guns 480 | 34 . 25 76 107 186 . 52 . Cannons 497 | . . 112 . . 307 . 78 . Explosions 77 | . . 77 . . . . . . Melee . | . . . . . . . . . Ramming 5 | . . . . . . . 5 . Kinetic 865 | 34 . 25 76 107 493 . 130 . Thermal . | . . . . . . . . . Explosive 77 | . . 77 . . . . . . Electromagnetic 112 | . . 112 . . . . . . Impact . | . . . . . . . . . Slashing . | . . . . . . . . . Piercing . | . . . . . . . . . Highest Corruption 12 | . . . . . 1 . . 12 Average Corruption 2 | . . . . . 1 . . 6 Corruption Purged . | . . . . . . . . . Corruption Blocked . | . . . . . . . . . Effects 6 | . . . . . 1 . . 5 Message Errors 1 | . . . . . . . . 1 Matter Fused 2 | . . . . . . . . 2 Data Loss (major) 2 | . . . . . 1 . . 1 Misdirections 1 | . . . . . . . . 1 Overload Shots . | . . . . . . . . . Overflow Damage 6 | . . . . . 6 . . . Projectiles 6 | . . . . . 6 . . . Explosions . | . . . . . . . . . Melee . | . . . . . . . . . Knockbacks 4 | . . . . . 4 . . . Impact . | . . . . . . . . . Kinetic 3 | . . . . . 3 . . . Secondary 1 | . . . . . 1 . . . Self-Inflicted Damage 2 | . . . . . . . 2 . Shots . | . . . . . . . . . Rammed 1 | . . . . . . . 1 . Targets Rammed 1 | . . . . . . . 1 . Kicked . | . . . . . . . . . Crushed . | . . . . . . . . . Highest Temperature 269 | 6 . 68 269 44 72 . . . Average Temperature 36 | 6 . 29 144 20 28 . . . Received Heat Transfer 723 | 18 . 90 372 54 63 12 36 78 Siege Activations . | . . . . . . . . . Robots Corrupted . | . . . . . . . . . Combat Hostiles . | . . . . . . . . . Parts Fried . | . . . . . . . . . Impact Corruptions . | . . . . . . . . . Robots Melted . | . . . . . . . . . Combat Hostiles . | . . . . . . . . . Parts Melted . | . . . . . . . . . Heat Transferred . | . . . . . . . . . Parts Sabotaged . | . . . . . . . . . Parts Stolen . | . . . . . . . . . Parts Stripped . | . . . . . . . . . Power Chain Reactions . | . . . . . . . . . Alert | -11 -10 -10 -10 -9 -7 -6 -6 -5 ------- Run | Yrd Mat Min Sub Rec Fac Fac DSF Fac Peak Influence 143 | 20 36 67 . 135 143 24 41 60 Initial 103 | . 13 13 . 103 56 9 16 15 Average 39 | 15 19 25 . 115 73 9 23 15 Maximum Alert Level . | . . . . . . . . . Low Security (%) 100 | 100 100 100 . 100 100 100 100 100 Level 1 . | . . . . . . . . . Level 2 . | . . . . . . . . . Level 3 . | . . . . . . . . . Level 4 . | . . . . . . . . . Level 5 . | . . . . . . . . . High Security . | . . . . . . . . . Max Security . | . . . . . . . . . Squads Dispatched 5 | . . . . . 2 . 2 1 Investigation 1 | . . . . . 1 . . . Extermination 2 | . . . . . 1 . . 1 Reinforcement 2 | . . . . . . . 2 . Assault . | . . . . . . . . . Garrison . | . . . . . . . . . Intercept . | . . . . . . . . . Searches Triggered . | . . . . . . . . . Construction Impeded . | . . . . . . . . . Haulers Reinforced . | . . . . . . . . . Active Scanning Responses . | . . . . . . . . . Cargo Convoy Interrupts . | . . . . . . . . . Stealth | -11 -10 -10 -10 -9 -7 -6 -6 -5 --------- Run | Yrd Mat Min Sub Rec Fac Fac DSF Fac Distress Signals 1 | . . . . . . . . 1 Communications Jammed . | . . . . . . . . . Distress Signals . | . . . . . . . . . Times Spotted 76 | 1 1 7 20 1 10 1 18 17 Peak Tracking Total 10 | 1 1 3 8 1 4 1 10 10 Tactical Retreats 10 | . . . 2 . 2 . 3 3 Traps | -11 -10 -10 -10 -9 -7 -6 -6 -5 ------- Run | Yrd Mat Min Sub Rec Fac Fac DSF Fac Traps Triggered 3 | . . . . . 2 . . 1 Indirectly . | . . . . . . . . . Trap Hack Attempts . | . . . . . . . . . Triggered . | . . . . . . . . . Disarmed . | . . . . . . . . . Reprogrammed . | . . . . . . . . . Reused . | . . . . . . . . . Traps Extracted . | . . . . . . . . . Installed . | . . . . . . . . . Triggered . | . . . . . . . . . Machines | -11 -10 -10 -10 -9 -7 -6 -6 -5 ---------- Run | Yrd Mat Min Sub Rec Fac Fac DSF Fac Machines Disabled 1 | . . 1 . . . . . . Max in Single Turn 1 | . . 1 . . . . . . Machines Repaired . | . . . . . . . . . Machines Dismantled . | . . . . . . . . . Machines Sabotaged . | . . . . . . . . . Overloaded Fab Kills . | . . . . . . . . . Hacking | -11 -10 -10 -10 -9 -7 -6 -6 -5 --------- Run | Yrd Mat Min Sub Rec Fac Fac DSF Fac Machines Accessed 17 | . 1 . 1 7 5 2 . 1 Terminals 11 | . 1 . . 5 2 2 . 1 Fabricators 1 | . . . . . 1 . . . Repair Stations 2 | . . . . . 2 . . . Recycling Units 2 | . . . . 2 . . . . Scanalyzers . | . . . . . . . . . Garrison Access . | . . . . . . . . . Total Hacks 41 | . 3 . 2 18 15 2 . 1 Successful 33 | . 2 . 2 15 11 2 . 1 Failed 8 | . 1 . . 3 4 . . . Catastrophic . | . . . . . . . . . Database Lockouts . | . . . . . . . . . Manual 3 | . . . 3 . . . . . Terminals 24 | . 3 . . 14 4 2 . 1 Fabricators 2 | . . . . . 2 . . . Repair Stations 9 | . . . . . 9 . . . Recycling Units 4 | . . . . 4 . . . . Scanalyzers . | . . . . . . . . . Garrison Access . | . . . . . . . . . Terminal Hacks 22 | . 2 . 2 11 4 2 . 1 Record 10 | . . . 2 4 3 . . 1 Prototype ID Bank 2 | . . . . 2 . . . . Open DSF 1 | . . . . . . 1 . . Alert Level 2 | . . . . 1 . 1 . . Locate Traps 1 | . . . . . 1 . . . Maintenance Status 1 | . 1 . . . . . . . Investigation Status 1 | . . . . 1 . . . . Assault Status 1 | . . . . 1 . . . . Zone Layout 3 | . 1 . . 2 . . . . Fabricator Hacks 1 | . . . . . 1 . . . Network Status 1 | . . . . . 1 . . . Repair Station Hacks 6 | . . . . . 6 . . . Scan Component 4 | . . . . . 4 . . . Repair 2 | . . . . . 2 . . . Recycling Unit Hacks 4 | . . . . 4 . . . . Recycle Component 1 | . . . . 1 . . . . Process 1 | . . . . 1 . . . . Report Inventory 1 | . . . . 1 . . . . Retrieve Components 1 | . . . . 1 . . . . Scanalyzer . | . . . . . . . . . Garrison Access Hacks . | . . . . . . . . . Unauthorized Hacks . | . . . . . . . . . Terminals . | . . . . . . . . . Fabricators . | . . . . . . . . . Repair Stations . | . . . . . . . . . Recycling Units . | . . . . . . . . . Scanalyzers . | . . . . . . . . . Garrison Access . | . . . . . . . . . Data Cores Recovered . | . . . . . . . . . Used . | . . . . . . . . . Hacking Detections 9 | . 1 . . 1 5 1 . 1 Full Trace Events 1 | . . . . . 1 . . . Feedback Events . | . . . . . . . . . Feedback Blocked . | . . . . . . . . . Robot Schematics Acquired . | . . . . . . . . . Robots Built . | . . . . . . . . . Authchips . | . . . . . . . . . Time . | . . . . . . . . . Total Robot Build Rating . | . . . . . . . . . Part Schematics Acquired . | . . . . . . . . . Parts Built . | . . . . . . . . . Authchips . | . . . . . . . . . Time . | . . . . . . . . . Total Part Build Rating . | . . . . . . . . . Parts Repaired 2 | . . . . . 2 . . . Time 70 | . . . . . 70 . . . Parts Recycled 1 | . . . . 1 . . . . Recycled Matter 33 | . . . . 33 . . . . Retrieved Matter . | . . . . . . . . . Retrieved Components 3 | . . . . 3 . . . . Parts Scanalyzed . | . . . . . . . . . Part Schematics Acquired . | . . . . . . . . . Parts Damaged . | . . . . . . . . . Bothacking | -11 -10 -10 -10 -9 -7 -6 -6 -5 ------------ Run | Yrd Mat Min Sub Rec Fac Fac DSF Fac Used RIF Installer . | . . . . . . . . . Robots Hacked . | . . . . . . . . . Non-combat . | . . . . . . . . . Combat . | . . . . . . . . . Robot Hacks Applied . | . . . . . . . . . Relay Couplers Released . | . . . . . . . . . Fabnet Peak Effective % . | . . . . . . . . . Robots Rewired . | . . . . . . . . . Allies Hacked . | . . . . . . . . . Hacks Repelled . | . . . . . . . . . Allies | -11 -10 -10 -10 -9 -7 -6 -6 -5 -------- Run | Yrd Mat Min Sub Rec Fac Fac DSF Fac Total Allies . | . . . . . . . . . Largest Group . | . . . . . . . . . Highest-Rated Group . | . . . . . . . . . Highest-Rated Ally . | . . . . . . . . . Total Orders . | . . . . . . . . . Ally Attacks . | . . . . . . . . . Total Damage . | . . . . . . . . . Kills . | . . . . . . . . . Allies Corrupted . | . . . . . . . . . Allies Melted 1 | . . . 1 . . . . . Intel | -11 -10 -10 -10 -9 -7 -6 -6 -5 ------- Run | Yrd Mat Min Sub Rec Fac Fac DSF Fac Robot Analysis Total . | . . . . . . . . . Derelict Logs Recovered 3 | . . 2 1 . . . . . Drone Launches . | . . . . . . . . . Drone Recoveries . | . . . . . . . . . Exploration | -11 -10 -10 -10 -9 -7 -6 -6 -5 ------------- Run | Yrd Mat Min Sub Rec Fac Fac DSF Fac Turns Passed 3256 | 323 195 906 222 237 654 141 221 357 Spaces Moved 3581 | 142 159 600 501 541 861 187 210 380 Core 276 | 31 . . . . . . 60 185 Treads . | . . . . . . . . . Legs 171 | . . 89 . . . . . 82 Wheels 487 | 111 159 217 . . . . . . Hover 1235 | . . . . . 813 187 122 113 Flight 1412 | . . 294 501 541 48 . 28 . Fastest Speed 37 | 50 80 37 37 37 37 71 50 40 Average Speed 74 | 73 107 138 39 37 62 71 90 84 Slowest Speed 1810 | 80 110 1810 40 37 120 71 220 200 Overloaded Moves . | . . . . . . . . . Propulsion Burnouts . | . . . . . . . . . Robots Hopped 13 | . . 6 . 7 . . . . Cave-ins Triggered . | . . . . . . . . . Exploration Rate (%) 38 | 9 21 71 36 91 16 4 84 12 Regions Visited 8 Branch Regions 3 Pre-discovered Areas . | . . . . . . . . . Known Exits Taken 6 | . 1 1 1 1 1 1 . . Unknown Exits Taken 1 | 1 . . . . . . . . Scrap Searched 1 | . . 1 . . . . . . Spaces Dug . | . . . . . . . . . Terrain Destroyed 9 | . . 9 . . . . . . Melee . | . . . . . . . . . Projectile . | . . . . . . . . . AOE 9 | . . 9 . . . . . . Terrain Rammed . | . . . . . . . . . Walls Destroyed . | . . . . . . . . . Machines Disabled . | . . . . . . . . . Actions | -11 -10 -10 -10 -9 -7 -6 -6 -5 --------- Run | Yrd Mat Min Sub Rec Fac Fac DSF Fac Total 4078 | 354 184 660 514 558 964 195 232 417 Wait 250 | 194 6 . . 6 44 . . . Move 3547 | 141 158 587 500 526 860 186 209 380 Hop 13 | . . 6 . 7 . . . . Pick Up 88 | 9 9 19 5 5 17 2 5 17 Fast Attach . | . . . . . . . . . Attach 59 | 6 5 6 2 1 12 4 5 18 Detach 13 | . 3 2 . . 4 2 2 . Swap 14 | . 1 10 . 1 . 1 . 1 Drop 43 | . 2 22 . 4 10 . 4 1 Fire 43 | 4 . 8 7 8 11 . 5 . Melee . | . . . . . . . . . Ram 1 | . . . . . . . 1 . Kick . | . . . . . . . . . Crush . | . . . . . . . . . Escape Stasis 6 | . . . . . 6 . . . Rewire 1 | . . . . . . . 1 . Trap . | . . . . . . . . . Miscellaneous . | . . . . . . . . . Route ------- -11/Scrapyard -10/Materials (discovered 2 exits: *Min x2) -10/Mines (discovered 2 exits: Mat / *Sub) -10/Subcaves (discovered 2 exits: *Mat / *Rec) -9/Recycling -7/Factory -6/Factory -6/DSF -5/Factory History --------- Turn | Location | Event 2 | -11/Scrapyard | Met Revision 17 62 | -11/Scrapyard | Discovered new exit (range 8) 324 | -11/Scrapyard | Entered Materials 325 | -10/Materials | Build established: Mutant 388 | -10/Materials | Discovered new exit (range 14) 485 | -10/Materials | Discovered new exit (range 11) 518 | -10/Materials | Identified exit to Mines 519 | -10/Materials | Entered Mines 545 | -10/Mines | Met a Derelict bent on vengeance 1018 | -10/Mines | Identified exit to Materials 1357 | -10/Mines | Joined a pair of Derelicts in attacking an 0b10 outpost 1375 | -10/Mines | Discovered new exit (range 13) 1379 | -10/Mines | Identified exit to Subcaves 1425 | -10/Mines | Entered Subcaves 1430 | -10/Subcaves | Discovered new exit (range 14) 1434 | -10/Subcaves | Identified exit to Materials 1443 | -10/Subcaves | Ambushed by swarm of Subdwellers 1446 | -10/Subcaves | Ambushed by Subdwellers from Twisted Machinery 1489 | -10/Subcaves | Visited Clippyterm 1490 | -10/Subcaves | Learned Research machine intel 1611 | -10/Subcaves | Discovered new exit (range 14) 1629 | -10/Subcaves | Core integrity fell below 50% 1633 | -10/Subcaves | Learned Materials garrison access intel 1645 | -10/Subcaves | Identified exit to Recycling 1647 | -10/Subcaves | Entered Recycling 1649 | -9/Recycling | Found Scrap Engine 1865 | -9/Recycling | Discovered new exit (range 8) 1882 | -9/Recycling | Identified exit to Factory 1884 | -9/Recycling | Entered Factory 1884 | -7/Factory | Evolved 6 slots: Power x1, Propulsion x2, Utility x2, Weapon x1 1927 | -7/Factory | Repaired Flight Unit 2281 | -7/Factory | Discovered new exit (range 16) 2314 | -7/Factory | Identified exit to Factory 2381 | -7/Factory | Repaired Gravmag System 2538 | -7/Factory | Entered another Factory area 2538 | -6/Factory | Evolved 2 slots: Utility x2 2638 | -6/Factory | Identified exit to DSF 2679 | -6/Factory | Entered DSF 2705 | -6/DSF | Additional patrols routed to DSF 2860 | -6/DSF | Core integrity fell below 50% 2892 | -6/DSF | Discovered new exit (range 16) 2900 | -6/DSF | Entered Factory 2900 | -5/Factory | Evolved 2 slots: Propulsion x2 2906 | -5/Factory | Lost 12 parts (1p3n5u3w) 3157 | -5/Factory | Core integrity fell below 50% 3168 | -5/Factory | System corruption reached 10% 3198 | -5/Factory | Lost 12 parts (1p2n8u1w) 3235 | -5/Factory | Core integrity fell below 20% 3257 | -5/Factory | Destroyed by S-27 Virus with Autogun Last Messages --------------- Triggered Segregator Trap. Arcs of energy rise from the floor. VSS Leg blown off. Acquired VSS Leg. System corrupted: Matter fused (-8). K-01 Serf cleans the Subcomponent Replicator. System corrupted: Matter fused (-6). Acquired Lgt. Fission Core. P-70 Sage resets S-27 Virus, system corruption cleaned. VSS Leg destroyed. Lgt. Fission Core destroyed. S-27 Virus destroyed. Acquired VTOL Module. [Achievement: First Step to Greatness] The achievement interface (ESC then open Records) offers an effective way to explore all of your earned achievements as well as seek out new goals for future runs. [Achievement: 5k Club] Map ----- +----------------------------------------------------+ | ??????? #??????????? | | ??????? #??????????? | | ??????? #??????????? | | ?????????#############/########## #??????????? | | ????????????????# #??? #??????????? | | ????????????????# #???? #??????????? | | ????????????????# #????? #??????????? | | ????????????????# """ """ #?????? ???????????? | | ????????????????# """ """ #???????????????????? | | ????????????????# """ """ #???????????????????? | | ????????????????# "" "" #???????????????????? | | ????????????????# "" "" #???????????????????? | | ????????????????# #???????????????????? | | ????????????????# #???????????????????? | | ????????????????# #???????????????????? | | ????????????????# #???????????????????? | | ????????????????##/##/########???????????????????? | | ?????????????????# #????????####+#######??????? | | ?????????????????# #???????? #??????? | | ?????????????????# ######## #??????? | | ?????????????????# #! p # #??????? | | ?????????????????# #p """ +! #??????? | | ?????????????????# # """s# #??????? | | ?????????????????# p[%""" #?? ] #??????? | | ?????????????????# # s s #???? #??????? | | ?????????????????# # @s #?????? #??????? | | ?????????????????# ########???????? ???????? | | ?????????????????# #????????????????? ???????? | | ?????????????????# #??????????????????????????? | | ?????????????????# ??????????????????????????? | | ?????????????????# ####??????????????????????????? | | ?????????????????# ??????????????????????????????? | | ?????????????????# ??????????????????????????????? | | ?????????????????# ??????????????????????????????? | | ?????????????????# ??????????????????????????????? | | ????????????????? ??????????????????????????????? | | ????????????????? ??????????????????????????????? | | ????????????????? ??????????????????????????????? | | ?????????????????????????????????????????????????? | | ?????????????????????????????????????????????????? | | ?????????????????????????????????????????????????? | | ?????????????????????????????????????????????????? | | ?????????????????????????????????????????????????? | | ?????????????????????????????????????????????????? | | ?????????????????????????????????????????????????? | | ?????????????????????????????????????????????????? | | ?????????????????????????????????????????????????? | | ?????????????????????????????????????????????????? | | ?????????????????????????????????????????????????? | | ?????????????????????????????????????????????????? | +----------------------------------------------------+ Best States ------------- Heat Dissipation 40 Energy Generation 18 Energy Capacity 290 Matter Stores 300 Matter Capacity 300 Sight Range 16 Terrain Scan Density 10 ECM Strength 1 Power Amplification 20 Corruption Containment 16 Armor Coverage 225 Resistance: EM 25 Evasion (%) 65 Targeting Accuracy 5 Offensive Hacking 14 Item Schematics ----------------- None Robot Schematics ------------------ None Fabricated ------------ Nothing Alien Tech Used ----------------- None Achievements -------------- 5k Club Crack Shot First Step to Greatness Librarian Made in Tau Ceti IV One Hack Too Far Part-time Mechanic Risk Taker Storm Trooper System Compromised Tourist Challenges ------------ None Game ------ Seed ServoShockSpecial Manual? 0 Play Time 01:14:01 Cumulative 1.2 hours Start 2024.03.31 @ 22:58:19 End 2024.04.01 @ 22:46:08 Sessions 5 Manual Loads 0 Difficulty Rogue Special Mode None Game No. 1 Rogue 1 Adventurer 0 Explorer 0 Win Type - Total 0 Types 0/0/0/0/0/0/0/0/0 Lore% 1 Gallery% 3 Achievement% 4 Wizard Run 0 Options --------- Layout 1 ASCII 0 Keyboard 0 Movement Mouse Keybinds 0 Fullscreen 1 Font 32/SmallcapsGlow Map View 50x35 Zoom Use 0% Tactical HUD 0 Map Filters NONE Filters NONE Steam 1 RUN: d68c0d6b-a660-4ac5-b084-32c5bc5b01c7